Cogmind - Beta 14 @@@ ROGUE MODE // 2025.01.18 @ 19:46:24 Player: Mathewnd Result: Destroyed by S-27 Virus with Autogun Performance ------------- Evolutions (6) 3000 Regions Visited (22) 4400 Robots Destroyed (223) 1115 Value Destroyed (8656) 8656 Prototype IDs (58) 1160 Alien Tech Used (2) 400 Bonus (2041) 2041 TOTAL SCORE: 20772 Bonus ------- High Alert Combat Kills 300 Follower Combat Kills 1130 Network Hubs Disabled 200 Met Data Miner 300 Met Zhirov 300 Friendly Fire -189 Cogmind --------- Core Integrity 0/1150 Matter 24/300 Energy 76/100 System Corruption 1% Temperature Cool (0) Movement Core (50) Location -4/Armory Parts ------- > --- POWER (2) -------- (None) > --- PROPULSION (6) --- Linear Gravjet > --- UTILITY (7) ------ (None) > --- WEAPON (4) ------- (None) > --- INVENTORY (5) ---- Huge Storage Unit Small Matter Pod (0) KE Penetrator Precision Rocket Launcher Mini Smartbomb Launcher Peak State ------------ > --- POWER ------------ Improved Deuterium Engine Heavy Antimatter Reactor > --- PROPULSION ------- Medium Treads Improved Medium Treads Improved Medium Treads Armored Medium Treads Heavy Treads > --- UTILITY ---------- Advanced Cooling System Huge Storage Unit Machine Analyzer Advanced Signal Interpreter Advanced Salvage Targeting Computer Centrium Medium Armor Plating Advanced System Shield > --- WEAPON ----------- Heavy Battle Rifle Hypervelocity Gauss Rifle KE Penetrator Hypervelocity Coil Gun > --- INVENTORY -------- Reinforced Fission Core Light Treads Improved Treads Compact Wheel Huge Storage Unit Small Matter Pod Advanced Terrain Scanner Point Defense System High-powered Tractor Beam Trap Reconfigurator Transdimensional Reconstructor KE Penetrator KE Penetrator KE Penetrator Railgun Precision Rocket Launcher Precision Rocket Launcher Mini Smartbomb Launcher Tiamat Missile Launcher [Rating: 111] Favorites ----------- Power Improved Ion Engine Engine Improved Ion Engine Power Core Light Nuclear Core Reactor Quantum Reactor Propulsion Light Treads Treads Light Treads Wheel Compact Wheel Hover Unit Linear Gravjet Utility Huge Storage Unit Device Improved Sensor Array Storage Huge Storage Unit Processor Machine Analyzer Hackware Advanced System Shield Protection Medium Armor Plating Weapon Enhanced Autogun Energy Gun Heavy Laser Energy Cannon Advanced Plasma Cannon Ballistic Gun Enhanced Autogun Launcher Precision Rocket Launcher Special Weapon Remote Datajack Slashing Weapon Great Axe Build | -11 -10 -10 -10 -9 -8 -7 -7 -7 -7 -6 -6 -6 -6 -6 -6 -5 -5 -5 -5 -4 -4 -4 ------- Run | Yrd Mat Min Exi Min Mat Fac Low Low Dat Pro Fac Ext Cet Arc Hub Fac Upp Upp Zhi Pro Fac Arm Slots Evolved 12 | . . . . . 4 2 . . . . 2 . . . . 2 . . . . 2 . Power 1 | . . . . . . . . . . . . . . . . 1 . . . . . . Propulsion 4 | . . . . . 2 1 . . . . . . . . . 1 . . . . . . Utility 5 | . . . . . 1 1 . . . . 2 . . . . . . . . . 1 . Weapon 2 | . . . . . 1 . . . . . . . . . . . . . . . 1 . Parts Attached 293 | 7 6 . . 5 12 27 3 9 . 15 53 39 6 6 11 35 8 3 13 5 22 8 Power 24 | 2 1 . . 1 2 4 1 . . 1 1 3 1 . . 1 3 . 1 . 1 1 Engine 11 | 2 1 . . 1 2 . . . . . . 3 . . . . 2 . . . . . Core 6 | . . . . . . 2 . . . 1 1 . . . . . . . . . 1 1 Reactor 7 | . . . . . . 2 1 . . . . . 1 . . 1 1 . 1 . . . Propulsion 81 | 2 2 . . 1 5 8 1 3 . 2 14 12 4 1 2 8 2 2 . 2 5 5 Treads 76 | 2 2 . . 1 4 8 1 3 . 2 14 12 4 1 2 7 2 2 . 2 4 3 Leg . | . . . . . . . . . . . . . . . . . . . . . . . Wheel 3 | . . . . . 1 . . . . . . . . . . 1 . . . . 1 . Hover 2 | . . . . . . . . . . . . . . . . . . . . . . 2 Flight . | . . . . . . . . . . . . . . . . . . . . . . . Utility 104 | 1 3 . . 1 3 12 1 6 . 9 20 12 . 3 4 8 3 1 9 1 7 . Device 72 | . . . . . . 10 1 6 . 5 17 12 . 2 2 2 3 1 7 . 4 . Storage 7 | 1 2 . . . 1 . . . . . . . . 1 . 1 . . 1 . . . Processor 8 | . . . . . 2 1 . . . . 3 . . . . 1 . . . . 1 . Hackware 4 | . . . . . . 1 . . . . . . . . . 2 . . . . 1 . Protection 13 | . 1 . . 1 . . . . . 4 . . . . 2 2 . . 1 1 1 . Artifact . | . . . . . . . . . . . . . . . . . . . . . . . Weapon 84 | 2 . . . 2 2 3 . . . 3 18 12 1 2 5 18 . . 3 2 9 2 Energy Gun 1 | . . . . . . . . . . . . . . . . 1 . . . . . . Energy Cannon 1 | . . . . . . . . . . . . . . . . . . . . . . 1 Ballistic Gun 61 | 2 . . . 2 2 3 . . . 3 11 8 1 2 4 11 . . 3 1 8 . Ballistic Cannon . | . . . . . . . . . . . . . . . . . . . . . . . Launcher 9 | . . . . . . . . . . . 2 2 . . . 2 . . . 1 1 1 Special Weapon 4 | . . . . . . . . . . . 2 2 . . . . . . . . . . Impact Weapon . | . . . . . . . . . . . . . . . . . . . . . . . Slashing Weapon 8 | . . . . . . . . . . . 3 . . . 1 4 . . . . . . Piercing Weapon . | . . . . . . . . . . . . . . . . . . . . . . . Special Melee Weapon . | . . . . . . . . . . . . . . . . . . . . . . . Unidentified Prototypes 15 | . . . . . . 2 . . . . 1 . 2 . 1 2 . . 6 . 1 . Parts Lost 87 | . . . . 7 5 2 . . . 6 10 11 2 . 15 1 3 . . 2 22 1 Power 12 | . . . . 1 2 1 . . . . 1 3 . . 1 . 2 . . . 1 . Propulsion 35 | . . . . 2 2 1 . . . 2 6 4 2 . 5 . . . . 1 9 1 Utility 13 | . . . . 2 . . . . . 1 . 1 . . 2 1 1 . . 1 4 . Weapon 27 | . . . . 2 1 . . . . 3 3 3 . . 7 . . . . . 8 . Highest Loss Streak 15 | . . . . 7 2 1 . . . 4 3 3 2 . 15 1 3 . . 2 7 1 To Critical Strikes 2 | . . . . . . . . . . . . . 2 . . . . . . . . . Average Slot Usage (%) 93 | . 98 100 100 94 98 99 100 99 100 99 99 99 92 86 85 82 91 94 79 95 87 9 Engine 4 | . 14 14 14 14 8 4 . . . . . 4 2 . . . 4 11 9 5 3 . Core 1 | . . . . . . 2 3 . . 5 5 1 . . . . . . . . 1 . Reactor 1 | . . . . . . . 3 7 7 1 . . 3 6 5 3 4 . 1 5 4 . Treads 30 | . 28 28 28 25 27 37 38 37 38 37 32 32 25 20 19 27 28 29 29 30 20 . Device 4 | . . . . . . 6 7 7 7 5 6 5 6 6 5 1 5 5 5 5 7 . Storage 7 | . 14 14 14 14 9 7 7 7 7 7 6 6 6 6 6 5 5 5 5 5 4 . Processor 17 | . . . . . 16 15 15 15 15 15 26 26 26 26 26 19 23 23 23 21 14 . Protection 2 | . 12 14 14 11 . . . . . 1 . . . . . . . . . 1 1 . Ballistic Gun 20 | . 28 28 28 27 26 23 23 23 23 22 19 19 20 20 19 11 17 17 3 17 20 . Peak Build Rating 111 | 6 12 12 13 14 24 49 53 54 52 53 59 63 90 98 102 91 100 93 95 97 111 44 Average Rating 53 | 4 11 12 12 12 21 36 49 51 52 43 50 52 69 92 94 65 92 91 78 95 97 15 On Entrance 47 | . 6 12 12 13 9 22 45 53 52 52 43 53 46 90 98 25 91 91 93 95 97 2 Naked Turns 72 | . . . . . . . . . . . . . . . . . . . . . 14 58 Heaviest Build 164 | 13 37 37 37 37 94 107 107 110 107 115 101 103 114 118 118 164 140 119 126 133 142 9 Greatest Support 225 | 40 46 46 46 46 86 106 114 115 115 112 126 122 180 183 183 170 177 182 182 182 185 225 Greatest Overweight (x) 27 | . . . . 1 5 1 . 1 . 1 1 . 1 . 27 10 . . . . 8 2 Average Overweight (x) . | . . . . . 4 . . . . . . . . . . 1 . . . . 1 . Largest Inventory Capacity 25 | 8 15 15 15 15 25 25 25 25 25 25 25 25 25 25 25 25 25 25 25 25 25 5 Average Capacity 23 | 6 9 15 15 15 24 25 25 25 25 25 25 25 25 25 25 25 25 25 25 25 24 5 Most Carried 25 | 7 11 11 13 15 25 25 25 25 25 25 25 25 25 25 25 25 25 25 25 24 21 5 Average Carried 21 | 4 8 11 11 14 17 24 24 24 25 20 24 24 23 24 24 21 24 25 24 23 17 4 Final Capacity 25 | 8 15 15 15 15 25 25 25 25 25 25 25 25 25 25 25 25 25 25 25 25 25 5 Final Carried 25 | 5 11 11 13 12 25 25 25 25 25 22 24 22 25 25 17 24 25 25 24 22 18 5 Class Distribution -------------------- 29% | Scavenger-Gunner 13% | Scavenger-Skirmisher 13% | Skirmisher 11% | Mutant 11% | Gunner 6% | Commander-Mutant 5% | Scavenger-Tank 3% | Scavenger-Mutant Dominant Class ---------------- Mutant | -10/Materials Mutant | -10/Mines Commander-Mutant | -10/Exiles Commander-Mutant | -9/Mines Gunner | -8/Materials Gunner | -7/Factory Skirmisher | -7/Lower Caves Skirmisher | -7/Lower Caves Skirmisher | -7/Data Miner Skirmisher | -6/Proximity Caves Scavenger-Skirmisher | -6/Factory Scavenger-Gunner | -6/Extension Scavenger-Gunner | -6/Cetus Scavenger-Gunner | -6/Archives Scavenger-Skirmisher | -6/Hub_04(d) Scavenger-Gunner | -5/Factory Scavenger-Gunner | -5/Upper Caves Scavenger-Gunner | -5/Upper Caves Scavenger-Mutant | -5/Zhirov Scavenger-Gunner | -4/Proximity Caves Scavenger-Tank | -4/Factory Mutant | -4/Armory Resources | -11 -10 -10 -10 -9 -8 -7 -7 -7 -7 -6 -6 -6 -6 -6 -6 -5 -5 -5 -5 -4 -4 -4 ----------- Run | Yrd Mat Min Exi Min Mat Fac Low Low Dat Pro Fac Ext Cet Arc Hub Fac Upp Upp Zhi Pro Fac Arm Matter Collected 10108 | 282 52 80 28 150 482 563 206 495 . 565 1843 1695 171 358 296 526 624 283 152 361 834 62 Remotely . | . . . . . . . . . . . . . . . . . . . . . . . Salvage Created 11722 | 86 89 187 73 342 621 704 88 463 . 737 2164 1708 186 413 801 331 695 230 364 333 1107 . Parts 617 | 2 3 6 2 21 38 39 7 23 . 25 118 78 14 26 37 22 34 14 9 21 78 . Haulers Intercepted 4 | . . . . . 2 . . . . . 2 . . . . . . . . . . . Recyclers Shooed 13 | . . 1 . . . . . . . . 4 2 . . . 4 . . . . 2 . Parts Field Recycled . | . . . . . . . . . . . . . . . . . . . . . . . Retrieved Matter . | . . . . . . . . . . . . . . . . . . . . . . . Parts Self-Destructed 100 | . . . . . . . . 24 . 24 . . . . . . 14 13 8 17 . . Prevented . | . . . . . . . . . . . . . . . . . . . . . . . Kills | -11 -10 -10 -10 -9 -8 -7 -7 -7 -7 -6 -6 -6 -6 -6 -6 -5 -5 -5 -5 -4 -4 -4 ------- Run | Yrd Mat Min Exi Min Mat Fac Low Low Dat Pro Fac Ext Cet Arc Hub Fac Upp Upp Zhi Pro Fac Arm Combat Hostiles Destroyed 156 | . 2 1 . 8 11 12 . 8 . 10 27 26 2 3 10 4 12 2 . 9 9 . Guns 143 | . 2 1 . 8 11 12 . 8 . 10 23 21 2 3 10 4 12 2 . 7 7 . AOE 13 | . . . . . . . . . . . 4 5 . . . . . . . 2 2 . Classes Destroyed 19 | 1 1 2 . 4 2 3 1 1 . . 2 . . 1 . . 1 . . . . . Worker 20 | . . 1 . . 3 1 . . . . 2 . . . 5 1 . . . . 7 . Builder 12 | . . . . . . . . . . . 2 1 . . . . . . . . 9 . Tunneler 5 | . . 1 . 3 . . . . . . . . . . . . . . . . 1 . Hauler 4 | . . . . . 2 . . . . . 2 . . . . . . . . . . . Recycler 10 | 1 . 1 . 1 . 2 . . . . 1 2 . . . . . . . . 2 . Operator 6 | . . . . . . . . . . . . . . 4 1 1 . . . . . . Watcher 11 | . . . . . 2 2 . . . . 3 1 1 . 2 . . . . . . . Swarmer 27 | . . . . 2 . 1 . 4 . . 4 5 . . . . 2 . . 9 . . Grunt 64 | . 2 1 . 1 7 4 . 1 . 7 13 16 . . 6 . . . . . 6 . Brawler 2 | . . . . . . . . . . . 1 . . . 1 . . . . . . . Duelist 4 | . . . . . . 1 . . . 1 . . . . 1 . . . . . 1 . Sentry 19 | . . . . 2 4 . . 1 . 1 3 4 . 3 . . 1 . . . . . Demolisher 1 | . . . . 1 . . . . . . . . . . . . . . . . . . Hunter 11 | . . . . . . 3 . 1 . 1 2 . . . 1 1 . 2 . . . . Programmer 14 | . . . . . . 3 . . . . 4 1 . . 1 4 . . . . 1 . Behemoth 2 | . . . . . . . . 1 . . . . . . . . . . . . 1 . Cetus Guard 2 | . . . . . . . . . . . . . 2 . . . . . . . . . Decomposer 1 | . . . . . . . . . . . . . . . . . 1 . . . . . Samaritan 6 | . . . . . . . 2 2 . . . . . . . . . . . 2 . . Assembled 2 | . . . . 2 . . . . . . . . . . . . . . . . . . Wasp 3 | . . . . . . . . . . . . . . . . . 3 . . . . . Thug 2 | . . . . . . . . . . . . . . . . . 2 . . . . . Butcher 3 | . . . . . . . . . . . . . . . . . 3 . . . . . Mutant 1 | . . . . . . . . . . . . . . . . . 1 . . . . . Best Kill Streak 12 | 1 2 2 . 3 6 4 . 3 . 3 8 5 2 4 3 3 5 2 . 5 12 . Combat Bots Only 5 | . 2 1 . 2 3 3 . 3 . 3 4 5 1 2 2 2 5 2 . 5 4 . Max Kills in Single Turn 3 | 1 1 1 . 1 2 2 1 2 . 1 3 3 2 1 3 1 2 1 . 2 3 . Gunslinging 1 | . . . . . . 1 . 1 . . 1 . . . . . . . . . . . Exploded 3 | . . . . . . . . . . . 3 3 . . . . . . . 2 1 . Melee . | . . . . . . . . . . . . . . . . . . . . . . . Uniques/NPCs Destroyed . | . . . . . . . . . . . . . . . . . . . . . . . Combat | -11 -10 -10 -10 -9 -8 -7 -7 -7 -7 -6 -6 -6 -6 -6 -6 -5 -5 -5 -5 -4 -4 -4 -------- Run | Yrd Mat Min Exi Min Mat Fac Low Low Dat Pro Fac Ext Cet Arc Hub Fac Upp Upp Zhi Pro Fac Arm Hostile Shots Fired 1647 | . 6 5 . 90 81 63 . 92 . 107 254 187 23 17 159 41 95 33 . 34 319 41 Missed 449 | . 1 2 . 25 22 15 . 34 . 30 95 67 8 2 11 14 13 6 . 7 82 15 Damage Taken 19693 | . 69 47 . 1227 904 656 . 687 . 1200 1977 1608 386 352 3349 461 1595 280 . 293 4226 376 Core 2655 | . 12 . . 202 137 128 . 43 . 98 265 79 79 47 337 39 123 . . . 847 219 Absorbed by Shields 2158 | . . . . . . 176 . 194 . 16 325 49 . . . 117 409 105 . 109 658 . Reduced by Siege Mode 282 | . . . . . . . . . . . . . . 24 5 . 128 21 . . 104 . Regen/Repaired (Parts) 525 | . . . . . . . . . . . . . . . . 525 . . . . . . Core Remaining (%) 56 | 100 . . . 14 75 . . . . 61 . . . . 5 . . . . 83 . . Volleys Fired 693 | 3 6 12 7 45 49 36 5 33 . 37 102 99 11 23 31 27 28 20 34 18 55 12 Largest 4 | 2 2 2 2 2 3 3 3 3 . 3 3 3 3 3 3 3 3 3 1 3 4 1 Hottest 136 | 40 40 40 40 40 68 78 78 78 . 81 81 89 76 88 103 115 99 99 33 99 136 98 Shots Fired 1856 | 6 12 24 14 80 145 108 15 99 . 107 296 238 34 68 88 81 85 60 34 50 200 12 Gun 1804 | 6 12 24 14 80 145 108 15 99 . 107 291 210 34 68 88 81 85 60 34 48 195 . Cannon 12 | . . . . . . . . . . . . . . . . . . . . . . 12 Launcher 14 | . . . . . . . . . . . 2 5 . . . . . . . 2 5 . Special 26 | . . . . . . . . . . . 3 23 . . . . . . . . . . Kinetic 1798 | 6 12 24 14 80 145 108 15 99 . 107 291 210 34 68 88 75 85 60 34 48 195 . Thermal 18 | . . . . . . . . . . . . . . . . 6 . . . . . 12 Explosive 14 | . . . . . . . . . . . 2 5 . . . . . . . 2 5 . Electromagnetic . | . . . . . . . . . . . . . . . . . . . . . . . Robot Hit Streak 35 | 2 11 17 5 9 15 13 16 10 . 7 23 16 17 32 29 12 31 35 31 27 20 . Robot Miss Streak 9 | 2 1 3 1 3 8 2 1 3 . 3 6 9 2 3 1 6 3 3 1 3 4 . Penetration Max 2 | . . . . . . . . . . 1 1 2 1 1 1 . . . . . 2 . Secondary Targets 32 | . . . . 3 2 3 . 2 . 1 3 7 1 . . 1 4 1 . 1 3 . Max Gunslinging Chain 1 | . . . . 1 1 1 . 1 . 1 1 1 1 . . 1 1 1 . 1 1 . Shots Hit Robots 1247 | 3 11 14 8 55 103 76 11 67 . 66 213 162 30 55 64 46 63 21 33 30 116 . Core Hits 559 | 2 5 5 7 21 46 35 6 26 . 33 88 79 13 23 34 16 23 5 12 14 66 . Critical Kills 20 | . . . . . . . . . . 1 3 5 1 2 5 . 1 . . . 2 . Critical Parts Destroyed 26 | . 1 . . . . . . . . . 1 3 1 . 6 . 1 . 1 2 10 . Critical Strikes 49 | . 1 . . . . . . . . 1 4 8 2 2 11 . 2 . 1 2 15 . Destroy 49 | . 1 . . . . . . . . 1 4 8 2 2 11 . 2 . 1 2 15 . Melee Attacks 9 | . . . . . . . . . . . 3 . . . 1 5 . . . . . . Impact . | . . . . . . . . . . . . . . . . . . . . . . . Slashing 9 | . . . . . . . . . . . 3 . . . 1 5 . . . . . . Piercing . | . . . . . . . . . . . . . . . . . . . . . . . Sneak Attacks 1 | . . . . . . . . . . . . . . . . 1 . . . . . . Combat Hostiles . | . . . . . . . . . . . . . . . . . . . . . . . Follow-up Attacks . | . . . . . . . . . . . . . . . . . . . . . . . Damage Inflicted 27062 | 24 112 150 139 561 1494 1493 197 1183 . 1200 4672 3206 624 1139 2276 1063 1631 392 732 793 3976 5 Guns 23975 | 24 112 150 93 561 1494 1372 197 1183 . 1200 4090 2564 624 1139 1853 992 1631 392 732 698 2874 . Cannons . | . . . . . . . . . . . . . . . . . . . . . . . Explosions 2874 | . . . . . . 121 . . . . 576 642 . . 375 . . . . 95 1065 . Melee 107 | . . . . . . . . . . . . . . . 41 66 . . . . . . Ramming 106 | . . . 46 . . . . . . . 6 . . . 7 5 . . . . 37 5 Kinetic 23857 | 24 112 150 93 561 1494 1372 197 1183 . 1200 4090 2564 624 1139 1853 874 1631 392 732 698 2874 . Thermal 231 | . . . . . . 113 . . . . . . . . . 118 . . . . . . Explosive 2378 | . . . . . . . . . . . 576 642 . . . . . . . 95 1065 . Electromagnetic 383 | . . . . . . 8 . . . . . . . . 375 . . . . . . . Impact . | . . . . . . . . . . . . . . . . . . . . . . . Slashing 107 | . . . . . . . . . . . . . . . 41 66 . . . . . . Piercing . | . . . . . . . . . . . . . . . . . . . . . . . Highest Corruption 8 | . . . . . . . . . . . 2 2 2 2 8 1 1 1 1 1 1 1 Average Corruption 1 | . . . . . . . . . . . 1 2 2 1 4 1 1 1 1 1 1 1 Corruption Purged 2 | . . . . . . . . . . . . . . 2 . . . . . . . . Corruption Blocked . | . . . . . . . . . . . . . . . . . . . . . . . Effects 73 | . . . . . . . . . . . 20 24 4 8 1 . 5 4 1 4 2 . Message Errors 18 | . . . . . . . . . . . 7 8 . 1 . . . . . . 2 . Matter Fused 15 | . . . . . . . . . . . 3 4 1 2 . . 3 1 . 1 . . Heat Flow Errors 9 | . . . . . . . . . . . 2 3 . 1 1 . . 1 1 . . . Energy Discharges 8 | . . . . . . . . . . . 2 2 1 1 . . . 2 . . . . Parts Rejected 1 | . . . . . . . . . . . . 1 . . . . . . . . . . Parts Fused 1 | . . . . . . . . . . . . 1 . . . . . . . . . . Data Loss (minor) 6 | . . . . . . . . . . . 1 1 . 1 . . . . . 3 . . Data Loss (major) 7 | . . . . . . . . . . . 3 1 1 1 . . 1 . . . . . Misfires 6 | . . . . . . . . . . . 1 3 1 . . . 1 . . . . . Weapon Failures 2 | . . . . . . . . . . . 1 . . 1 . . . . . . . . Overload Shots . | . . . . . . . . . . . . . . . . . . . . . . . Overflow Damage 163 | . . . . . . 8 . . . . 46 8 . . 47 . . . . . 54 . Projectiles . | . . . . . . . . . . . . . . . . . . . . . . . Explosions 163 | . . . . . . 8 . . . . 46 8 . . 47 . . . . . 54 . Melee . | . . . . . . . . . . . . . . . . . . . . . . . Knockbacks 2 | . . . . . . . . . . . . . . . . . . . . . 2 . Impact 1 | . . . . . . . . . . . . . . . . . . . . . 1 . Kinetic . | . . . . . . . . . . . . . . . . . . . . . . . Secondary 1 | . . . . . . . . . . . . . . . . . . . . . 1 . Self-Inflicted Damage 206 | . . . . . . 53 . . . . 61 . . . 90 . . . . . . 2 Shots 4 | . . . . . . 1 . . . . 2 . . . 1 . . . . . . . Rammed 20 | . . . 15 . . . . . . . 1 . . . 1 1 . . . . 1 1 Targets Rammed 22 | . . . 16 . . . . . . . 1 . . . 1 1 . . . . 2 1 Kicked . | . . . . . . . . . . . . . . . . . . . . . . . Crushed 2 | . . . 1 . . . . . . . . . . . . . . . . . 1 . Highest Temperature 486 | . 35 22 16 53 39 103 59 250 . 305 211 201 . 186 297 120 300 205 213 . 486 . Average Temperature 58 | . 18 8 7 10 13 32 28 87 . 141 31 44 . 80 67 27 93 47 114 . 184 . Received Heat Transfer 4403 | . 39 27 . 54 486 124 . 104 . 490 361 525 . 81 360 36 235 . . . 1427 54 Effects 10 | . . . . . . . . . . 3 . . . . . . 3 . 1 . 3 . Shutdowns 2 | . . . . . . . . . . . . . . . . . . . . . 2 . Energy Bleed 1 | . . . . . . . . . . . . . . . . . . . 1 . . . Interference 6 | . . . . . . . . . . 3 . . . . . . 3 . . . . . Matter Decay 1 | . . . . . . . . . . . . . . . . . . . . . 1 . Siege Activations 16 | . . . . . . . . . . . . . . 4 5 1 3 1 . . 2 . Total Turns 253 | . . . . . . . . . . . . . . 66 49 10 75 18 . . 35 . Longest Duration 50 | . . . . . . . . . . . . . . 31 12 10 50 18 . . 18 . Robots Corrupted . | . . . . . . . . . . . . . . . . . . . . . . . Combat Hostiles . | . . . . . . . . . . . . . . . . . . . . . . . Parts Fried 1 | . . . . . . . . . . . . . . . 1 . . . . . . . Impact Corruptions . | . . . . . . . . . . . . . . . . . . . . . . . Robots Melted . | . . . . . . . . . . . . . . . . . . . . . . . Combat Hostiles . | . . . . . . . . . . . . . . . . . . . . . . . Parts Melted 2 | . . . . . . . . . . . . 1 . . . . . . . . 1 . Heat Transferred 322 | . . . . . . 100 . . . . . . . . . 222 . . . . . . Parts Sabotaged . | . . . . . . . . . . . . . . . . . . . . . . . Parts Stolen . | . . . . . . . . . . . . . . . . . . . . . . . Parts Stripped . | . . . . . . . . . . . . . . . . . . . . . . . Power Chain Reactions . | . . . . . . . . . . . . . . . . . . . . . . . Alert | -11 -10 -10 -10 -9 -8 -7 -7 -7 -7 -6 -6 -6 -6 -6 -6 -5 -5 -5 -5 -4 -4 -4 ------- Run | Yrd Mat Min Exi Min Mat Fac Low Low Dat Pro Fac Ext Cet Arc Hub Fac Upp Upp Zhi Pro Fac Arm Peak Influence 802 | 5 66 84 . 149 208 261 . . . . 409 802 485 373 427 356 . . . . 296 96 Initial 448 | . 3 25 . . . 38 . . . . . 177 448 194 64 151 . . . . 56 50 Average 175 | 1 15 55 . 75 81 75 . . . . 214 424 473 279 149 148 . . . . 123 59 Maximum Alert Level 3 | . . . . . 1 1 . . . . 2 3 2 1 2 1 . . . . 1 . Low Security (%) 65 | 100 100 100 . 100 94 92 . . . . 37 5 . 30 86 76 . . . . 80 100 Level 1 23 | . . . . . 5 7 . . . . 54 33 . 69 8 23 . . . . 20 . Level 2 10 | . . . . . . . . . . . 8 53 100 . 5 . . . . . . . Level 3 . | . . . . . . . . . . . . 7 . . . . . . . . . . Level 4 . | . . . . . . . . . . . . . . . . . . . . . . . Level 5 . | . . . . . . . . . . . . . . . . . . . . . . . High Security . | . . . . . . . . . . . . . . . . . . . . . . . Max Security . | . . . . . . . . . . . . . . . . . . . . . . . Squads Dispatched 36 | . . . . . 2 4 . . . . 6 5 . . 6 7 . . . . 6 . Investigation 2 | . . . . . . 1 . . . . . . . . 1 . . . . . . . Extermination 10 | . . . . . . 2 . . . . 4 . . . 1 2 . . . . 1 . Reinforcement 14 | . . . . . 1 1 . . . . 2 3 . . 1 1 . . . . 5 . Assault 2 | . . . . . . . . . . . . 2 . . . . . . . . . . Garrison 8 | . . . . . 1 . . . . . . . . . 3 4 . . . . . . Intercept . | . . . . . . . . . . . . . . . . . . . . . . . Searches Triggered . | . . . . . . . . . . . . . . . . . . . . . . . Data Miner Redirects 1 | . . . . . . . . . . . . . . . 1 . . . . . . . Construction Impeded 6 | . . . . . . . . . . . 1 2 . . 1 . . . . . 2 . Haulers Reinforced 2 | . . . . . . . . . . . 1 . . . . . . . . . 1 . Active Scanning Responses . | . . . . . . . . . . . . . . . . . . . . . . . Cargo Convoy Interrupts . | . . . . . . . . . . . . . . . . . . . . . . . Stealth | -11 -10 -10 -10 -9 -8 -7 -7 -7 -7 -6 -6 -6 -6 -6 -6 -5 -5 -5 -5 -4 -4 -4 --------- Run | Yrd Mat Min Exi Min Mat Fac Low Low Dat Pro Fac Ext Cet Arc Hub Fac Upp Upp Zhi Pro Fac Arm Distress Signals 8 | . . . . . 2 . . . . . 1 1 1 . 2 . . . . . 1 . Communications Jammed . | . . . . . . . . . . . . . . . . . . . . . . . Distress Signals . | . . . . . . . . . . . . . . . . . . . . . . . Times Spotted 252 | . 2 2 . 12 17 14 . 8 . 11 35 40 4 16 23 12 12 2 . 6 23 13 Peak Tracking Total 10 | . 2 2 . 4 5 3 . 3 . 3 6 8 5 2 10 3 5 2 . 5 8 9 Tactical Retreats 13 | . . . . . 2 . . . . . 2 5 . . 1 . . . . . 2 1 Traps | -11 -10 -10 -10 -9 -8 -7 -7 -7 -7 -6 -6 -6 -6 -6 -6 -5 -5 -5 -5 -4 -4 -4 ------- Run | Yrd Mat Min Exi Min Mat Fac Low Low Dat Pro Fac Ext Cet Arc Hub Fac Upp Upp Zhi Pro Fac Arm Traps Triggered 1 | . . . . . . 1 . . . . . . . . . . . . . . . . Indirectly . | . . . . . . . . . . . . . . . . . . . . . . . Trap Hack Attempts . | . . . . . . . . . . . . . . . . . . . . . . . Triggered . | . . . . . . . . . . . . . . . . . . . . . . . Disarmed . | . . . . . . . . . . . . . . . . . . . . . . . Reprogrammed . | . . . . . . . . . . . . . . . . . . . . . . . Reused 6 | . . . . . . . . . . . 4 2 . . . . . . . . . . Traps Reconfigurated 18 | . . . . . . . . . . . 13 5 . . . . . . . . . . Traps Extracted . | . . . . . . . . . . . . . . . . . . . . . . . Installed . | . . . . . . . . . . . . . . . . . . . . . . . Triggered 6 | . . . . . . . . . . . 4 2 . . . . . . . . . . Machines | -11 -10 -10 -10 -9 -8 -7 -7 -7 -7 -6 -6 -6 -6 -6 -6 -5 -5 -5 -5 -4 -4 -4 ---------- Run | Yrd Mat Min Exi Min Mat Fac Low Low Dat Pro Fac Ext Cet Arc Hub Fac Upp Upp Zhi Pro Fac Arm Machines Disabled 32 | . . 1 . . . 7 . . . . 5 1 . 4 10 2 . . . . 2 . Max in Single Turn 7 | . . . . . . 7 . . . . 1 . . 2 7 1 . . . . 1 . Garrison Access 2 | . . . . . . 2 . . . . . . . . . . . . . . . . Network Hub 1 | . . . . . . . . . . . . . . . 1 . . . . . . . Energy Cycler 1 | . . . . . . . . . . . . 1 . . . . . . . . . . Machines Repaired . | . . . . . . . . . . . . . . . . . . . . . . . Machines Dismantled . | . . . . . . . . . . . . . . . . . . . . . . . Machines Sabotaged . | . . . . . . . . . . . . . . . . . . . . . . . Overloaded Fab Kills . | . . . . . . . . . . . . . . . . . . . . . . . Hacking | -11 -10 -10 -10 -9 -8 -7 -7 -7 -7 -6 -6 -6 -6 -6 -6 -5 -5 -5 -5 -4 -4 -4 --------- Run | Yrd Mat Min Exi Min Mat Fac Low Low Dat Pro Fac Ext Cet Arc Hub Fac Upp Upp Zhi Pro Fac Arm Machines Accessed 44 | . 1 1 1 . 3 5 1 . 4 . 6 5 . 1 . 7 . . 5 . 2 2 Terminals 19 | . 1 1 . . 3 2 . . . . 1 4 . . . 4 . . . . 2 1 Fabricators 6 | . . . . . . 1 . . . . 3 . . . . 2 . . . . . . Repair Stations 1 | . . . . . . . . . . . . . . . . 1 . . . . . . Recycling Units 3 | . . . . . . . . . . . 1 1 . . . . . . . . . 1 Scanalyzers . | . . . . . . . . . . . . . . . . . . . . . . . Garrison Access 3 | . . . . . . 2 . . . . 1 . . . . . . . . . . . Total Hacks 166 | . 2 3 1 . 8 14 1 . 31 . 8 15 . 1 . 46 . . 18 . 10 8 Successful 100 | . 2 1 1 . 1 4 1 . 31 . 4 9 . 1 . 21 . . 18 . 3 3 Failed 66 | . . 2 . . 7 10 . . . . 4 6 . . . 25 . . . . 7 5 Catastrophic 12 | . . . . . 2 2 . . . . 2 . . . . 3 . . . . 2 1 Database Lockouts . | . . . . . . . . . . . . . . . . . . . . . . . Manual 61 | . 2 4 1 . 3 7 . . . . 2 9 . . . 23 . . . . 5 5 Terminals 84 | . 2 3 . . 8 8 . . . . 2 14 . . . 35 . . . . 10 2 Fabricators 12 | . . . . . . 2 . . . . 4 . . . . 6 . . . . . . Repair Stations 5 | . . . . . . . . . . . . . . . . 5 . . . . . . Recycling Units 8 | . . . . . . . . . . . 1 1 . . . . . . . . . 6 Scanalyzers . | . . . . . . . . . . . . . . . . . . . . . . . Garrison Access 5 | . . . . . . 4 . . . . 1 . . . . . . . . . . . Terminal Hacks 73 | . 1 1 1 . 1 . 1 . 31 . 2 5 . 1 . 10 . . 18 . 1 . Record 18 | . . . . . . . . . 11 . . . . 1 . . . . 6 . . . Part Schematic 15 | . . . . . . . . . 11 . . . . . . . . . 4 . . . Robot Schematic 6 | . . . . . . . . . 6 . . . . . . . . . . . . . Robot Analysis 6 | . . 1 . . . . . . . . . 1 . . . . . . 4 . . . Prototype ID Bank 9 | . . . . . 1 . . . 3 . . . . . . 1 . . 4 . . . Open Door 1 | . . . . . . . 1 . . . . . . . . . . . . . . . Branch Access Points 3 | . 1 . . . . . . . . . 1 . . . . 1 . . . . . . Emergency Access Points 1 | . . . . . . . . . . . . . . . . 1 . . . . . . Terminal Index 1 | . . . . . . . . . . . . . . . . . . . . . 1 . Alert Level 2 | . . . . . . . . . . . . 1 . . . 1 . . . . . . Unreport Threat 1 | . . . . . . . . . . . . 1 . . . . . . . . . . Locate Traps 2 | . . . . . . . . . . . . 1 . . . 1 . . . . . . Recall Extermination 2 | . . . . . . . . . . . . . . . . 2 . . . . . . Registered Components 1 | . . . . . . . . . . . . . . . . 1 . . . . . . Zone Layout 4 | . . . . . . . . . . . 1 1 . . . 2 . . . . . . Derelict Proto ID Bank 1 | . . . 1 . . . . . . . . . . . . . . . . . . . Fabricator Hacks 5 | . . . . . . 1 . . . . 1 . . . . 3 . . . . . . Network Status 4 | . . . . . . . . . . . 1 . . . . 3 . . . . . . Build 1 | . . . . . . 1 . . . . . . . . . . . . . . . . Repair Station Hacks 2 | . . . . . . . . . . . . . . . . 2 . . . . . . Scan Component 1 | . . . . . . . . . . . . . . . . 1 . . . . . . Repair 1 | . . . . . . . . . . . . . . . . 1 . . . . . . Recycling Unit Hacks 4 | . . . . . . . . . . . 1 1 . . . . . . . . . 2 Retrieve Matter 1 | . . . . . . . . . . . . . . . . . . . . . . 1 Retrieve Components 3 | . . . . . . . . . . . 1 1 . . . . . . . . . 1 Scanalyzer . | . . . . . . . . . . . . . . . . . . . . . . . Garrison Access Hacks 2 | . . . . . . 2 . . . . . . . . . . . . . . . . Seal Access 2 | . . . . . . 2 . . . . . . . . . . . . . . . . Unauthorized Hacks 14 | . 1 . . . . 1 . . . . . 3 . . . 6 . . . . 2 1 Terminals 10 | . 1 . . . . 1 . . . . . 3 . . . 3 . . . . 2 . Botnet 10 | . 1 . . . . 1 . . . . . 3 . . . 3 . . . . 2 . Fabricators 3 | . . . . . . . . . . . . . . . . 3 . . . . . . Liberate 2 | . . . . . . . . . . . . . . . . 2 . . . . . . Fabnet 1 | . . . . . . . . . . . . . . . . 1 . . . . . . Repair Stations . | . . . . . . . . . . . . . . . . . . . . . . . Recycling Units 1 | . . . . . . . . . . . . . . . . . . . . . . 1 Mask 1 | . . . . . . . . . . . . . . . . . . . . . . 1 Scanalyzers . | . . . . . . . . . . . . . . . . . . . . . . . Garrison Access . | . . . . . . . . . . . . . . . . . . . . . . . Data Cores Recovered 1 | . . . . . . . . . . . . . . . . 1 . . . . . . Used . | . . . . . . . . . . . . . . . . . . . . . . . Hacking Detections 25 | . . 1 . . 3 4 . . . . 4 5 . . . 5 . . . . 2 1 Full Trace Events 1 | . . . . . . 1 . . . . . . . . . . . . . . . . Feedback Events . | . . . . . . . . . . . . . . . . . . . . . . . Feedback Blocked . | . . . . . . . . . . . . . . . . . . . . . . . Robot Schematics Acquired 6 | . . . . . . . . . 6 . . . . . . . . . . . . . Robots Built . | . . . . . . . . . . . . . . . . . . . . . . . Authchips . | . . . . . . . . . . . . . . . . . . . . . . . Time . | . . . . . . . . . . . . . . . . . . . . . . . Total Robot Build Rating . | . . . . . . . . . . . . . . . . . . . . . . . Part Schematics Acquired 15 | . . . . . . . . . 11 . . . . . . . . . 4 . . . Parts Built 2 | . . . . . . 2 . . . . . . . . . . . . . . . . Authchips . | . . . . . . . . . . . . . . . . . . . . . . . Time 58 | . . . . . . 58 . . . . . . . . . . . . . . . . Total Part Build Rating 14 | . . . . . . 14 . . . . . . . . . . . . . . . . Parts Repaired 1 | . . . . . . . . . . . . . . . . 1 . . . . . . Time 13 | . . . . . . . . . . . . . . . . 13 . . . . . . Parts Recycled . | . . . . . . . . . . . . . . . . . . . . . . . Recycled Matter . | . . . . . . . . . . . . . . . . . . . . . . . Retrieved Matter . | . . . . . . . . . . . . . . . . . . . . . . . Retrieved Components 15 | . . . . . . . . . . . 3 10 . . . . . . . . . 2 Parts Scanalyzed . | . . . . . . . . . . . . . . . . . . . . . . . Part Schematics Acquired . | . . . . . . . . . . . . . . . . . . . . . . . Parts Damaged . | . . . . . . . . . . . . . . . . . . . . . . . Bothacking | -11 -10 -10 -10 -9 -8 -7 -7 -7 -7 -6 -6 -6 -6 -6 -6 -5 -5 -5 -5 -4 -4 -4 ------------ Run | Yrd Mat Min Exi Min Mat Fac Low Low Dat Pro Fac Ext Cet Arc Hub Fac Upp Upp Zhi Pro Fac Arm Used RIF Installer . | . . . . . . . . . . . . . . . . . . . . . . . Robots Hacked 2 | . . . . . . . . . . . 2 . . . . . . . . . . . Non-combat 2 | . . . . . . . . . . . 2 . . . . . . . . . . . Combat . | . . . . . . . . . . . . . . . . . . . . . . . Robot Hacks Applied 3 | . . . . . . . . . . . 3 . . . . . . . . . . . no_distress 2 | . . . . . . . . . . . 2 . . . . . . . . . . . find_fabricator 1 | . . . . . . . . . . . 1 . . . . . . . . . . . Relay Couplers Released . | . . . . . . . . . . . . . . . . . . . . . . . Fabnet Peak Effective % 3 | . . . . . . . . . . . . . . . . . . . . 3 3 3 Robots Rewired 13 | . . . 4 . . . . . . . . 9 . . . . . . . . . . Allies Hacked . | . . . . . . . . . . . . . . . . . . . . . . . Hacks Repelled 1 | . . . . . . . . . . . . . . . . 1 . . . . . . Allies | -11 -10 -10 -10 -9 -8 -7 -7 -7 -7 -6 -6 -6 -6 -6 -6 -5 -5 -5 -5 -4 -4 -4 -------- Run | Yrd Mat Min Exi Min Mat Fac Low Low Dat Pro Fac Ext Cet Arc Hub Fac Upp Upp Zhi Pro Fac Arm Total Allies 26 | . . 4 4 . . . . . . . . 13 . . . 5 . . . . . . Largest Group 9 | . . 4 7 7 . . . . . . . 9 3 1 . 3 . . . . . . Highest-Rated Group 291 | . . 71 85 85 . . . . . . . 291 101 39 . 87 . . . . . . Highest-Rated Ally 41 | . . 31 21 21 . . . . . . . 39 39 39 . 41 . . . . . . Total Orders . | . . . . . . . . . . . . . . . . . . . . . . . Ally Attacks 190 | . . 9 . 21 . . . . . . . 100 19 2 . 39 . . . . . . Total Damage 3695 | . . 76 . 266 . . . . . . . 1794 367 42 . 1150 . . . . . . Kills 34 | . . 1 . 4 . . . . . . . 17 2 1 . 9 . . . . . . Allies Corrupted . | . . . . . . . . . . . . . . . . . . . . . . . Allies Melted . | . . . . . . . . . . . . . . . . . . . . . . . Intel | -11 -10 -10 -10 -9 -8 -7 -7 -7 -7 -6 -6 -6 -6 -6 -6 -5 -5 -5 -5 -4 -4 -4 ------- Run | Yrd Mat Min Exi Min Mat Fac Low Low Dat Pro Fac Ext Cet Arc Hub Fac Upp Upp Zhi Pro Fac Arm Robot Analysis Total 6 | . . 1 . . . . . . . . . 1 . . . . . . 4 . . . Derelict Logs Recovered 10 | . . 1 . 2 . . 1 2 . 1 . . . . . . . 1 . 2 . . Drone Launches . | . . . . . . . . . . . . . . . . . . . . . . . Drone Recoveries . | . . . . . . . . . . . . . . . . . . . . . . . Exploration | -11 -10 -10 -10 -9 -8 -7 -7 -7 -7 -6 -6 -6 -6 -6 -6 -5 -5 -5 -5 -4 -4 -4 ------------- Run | Yrd Mat Min Exi Min Mat Fac Low Low Dat Pro Fac Ext Cet Arc Hub Fac Upp Upp Zhi Pro Fac Arm Turns Passed 18169 | 88 308 793 602 831 975 1443 413 982 124 964 2429 1591 210 559 593 1732 776 618 401 653 880 204 Spaces Moved 9287 | 52 171 472 306 403 438 791 258 569 80 466 1250 776 96 177 263 892 391 323 187 359 384 183 Core 195 | 18 . . . . . . . . . . . . . . 1 . . . . . 23 153 Treads 8396 | 34 171 472 306 403 9 791 258 569 80 466 1250 776 96 177 262 709 391 323 187 359 300 7 Legs . | . . . . . . . . . . . . . . . . . . . . . . . Wheels 673 | . . . . . 429 . . . . . . . . . . 183 . . . . 61 . Hover 23 | . . . . . . . . . . . . . . . . . . . . . . 23 Flight . | . . . . . . . . . . . . . . . . . . . . . . . Fastest Speed 36 | 50 160 160 160 160 175 153 153 153 156 156 156 160 160 160 160 162 162 164 164 163 50 36 Average Speed 160 | 121 160 160 160 169 176 161 153 154 156 159 160 160 161 160 164 169 163 164 164 163 168 63 Slowest Speed 1400 | 160 160 160 160 240 240 242 153 231 156 236 240 160 240 160 1400 250 164 164 164 164 243 160 Overloaded Moves . | . . . . . . . . . . . . . . . . . . . . . . . Propulsion Burnouts . | . . . . . . . . . . . . . . . . . . . . . . . Robots Hopped . | . . . . . . . . . . . . . . . . . . . . . . . Cave-ins Triggered . | . . . . . . . . . . . . . . . . . . . . . . . Teleports 1 | . . . . . . . . . . . . . . . . . . . . . 1 . Exploration Rate (%) 47 | 5 26 95 70 83 34 25 51 65 68 52 28 87 49 80 23 18 60 53 61 49 14 6 Regions Visited 22 Branch Regions 16 Pre-discovered Areas 6 | . . . . 1 . . . . 1 . . . . . . . . 1 3 . . . Known Exits Taken 16 | . 1 . . . . 1 1 1 1 1 1 1 1 1 1 1 1 1 1 1 . . Unknown Exits Taken 6 | 1 . 1 1 1 1 . . . . . . . . . . . . . . . 1 . Scrap Searched 13 | . . 1 . 2 . . 2 3 . . . . . . . . 2 1 . 2 . . Spaces Dug 38 | . . . . . . . . . . . 3 . . . 8 7 . 11 . . 5 4 Terrain Destroyed 469 | . . . . . . 42 . . . 1 17 96 . 3 178 11 16 27 . 28 42 8 Melee 7 | . . . . . . . . . . . 3 . . . . 4 . . . . . . Projectile 127 | . . . . . . . . . . 1 1 8 . 3 23 6 16 27 . 10 24 8 AOE 333 | . . . . . . 42 . . . . 12 88 . . 155 . . . . 18 18 . Terrain Rammed . | . . . . . . . . . . . . . . . . . . . . . . . Walls Destroyed . | . . . . . . . . . . . . . . . . . . . . . . . Machines Disabled . | . . . . . . . . . . . . . . . . . . . . . . . Actions | -11 -10 -10 -10 -9 -8 -7 -7 -7 -7 -6 -6 -6 -6 -6 -6 -5 -5 -5 -5 -4 -4 -4 --------- Run | Yrd Mat Min Exi Min Mat Fac Low Low Dat Pro Fac Ext Cet Arc Hub Fac Upp Upp Zhi Pro Fac Arm Total 11328 | 71 196 488 396 485 542 916 268 625 79 619 1506 980 132 411 362 1050 465 368 244 385 482 258 Wait 685 | . 1 5 3 23 21 28 2 10 . 99 56 35 . 195 56 48 25 20 . 3 7 48 Move 9265 | 51 170 471 305 402 437 790 257 568 79 465 1249 775 95 176 262 891 390 322 186 358 383 183 Hop . | . . . . . . . . . . . . . . . . . . . . . . . Pick Up 158 | 9 7 . 2 7 23 15 1 2 . 3 24 8 11 5 . 20 8 . 4 1 8 . Fast Attach 43 | 2 1 . . . . 2 . 2 . . 2 9 . . . 9 3 . 3 . 3 7 Attach 91 | 4 . . . 5 10 5 . 1 . 6 13 6 4 . 8 8 2 . 1 3 14 1 Detach 12 | . . . . . . 2 . . . . 1 . 1 . . 7 . . . . . 1 Swap 161 | 1 5 . . . 2 20 3 6 . 9 38 24 2 6 3 18 3 3 10 2 6 . Drop 113 | 1 6 . . 3 . 18 . 3 . . 17 11 8 6 . 16 6 3 6 . 4 5 Fire 693 | 3 6 12 7 45 49 36 5 33 . 37 102 99 11 23 31 27 28 20 34 18 55 12 Melee 9 | . . . . . . . . . . . 3 . . . 1 5 . . . . . . Ram 1 | . . . . . . . . . . . . . . . . . . . . . . 1 Kick . | . . . . . . . . . . . . . . . . . . . . . . . Crush 21 | . . . 16 . . . . . . . 1 . . . 1 1 . . . . 2 . Escape Stasis . | . . . . . . . . . . . . . . . . . . . . . . . Rewire 76 | . . . 63 . . . . . . . . 13 . . . . . . . . . . Trap . | . . . . . . . . . . . . . . . . . . . . . . . Miscellaneous . | . . . . . . . . . . . . . . . . . . . . . . . Route ------- -11/Scrapyard -10/Materials (discovered 2 exits: *Min x2) -10/Mines (discovered 3 exits: [*Mat x2] / *Exi) -10/Exiles (discovered 2 exits: [*Min x2]) -9/Mines -8/Materials -7/Factory (discovered 2 exits: *Fac / *Low) -7/Lower Caves -7/Lower Caves -7/Data Miner -6/Proximity Caves -6/Factory (discovered 4 exits: *Low x2 / *Ext x2) -6/Extension (discovered 3 exits: *Fac x2 / *Cet) -6/Cetus -6/Archives (discovered 2 exits: *Fac / *Hub) -6/Hub_04(d) -5/Factory (discovered 3 exits: *Fac / *Upp x2) -5/Upper Caves -5/Upper Caves (discovered 2 exits: *Fac / *Zhi) -5/Zhirov -4/Proximity Caves -4/Factory -4/Armory History --------- Turn | Location | Event 6 | -11/Scrapyard | Discovered new exit (range 13) 89 | -11/Scrapyard | Entered Materials 311 | -10/Materials | Identified exit to Mines 318 | -10/Materials | Build established: Mutant 397 | -10/Materials | Entered Mines 405 | -10/Mines | Discovered new exit (range 5) 479 | -10/Mines | Received a Mining Laser from a helpful Derelict 599 | -10/Mines | Assisted by bots powering up and referring to "LRC-V3" 1031 | -10/Mines | Discovered new exit (range 9) 1177 | -10/Mines | Deemed a non-threat by the Exiles lab entrance 1178 | -10/Mines | Discovered new exit (range 5) 1190 | -10/Mines | Entered Exiles 1190 | -10/Exiles | Found Exiles lab destroyed 1190 | -10/Exiles | Accompanied by 3 allies 1214 | -10/Exiles | Discovered new exit (range 15) 1447 | -10/Exiles | Opened EX-Vault 1455 | -10/Exiles | Found Trap Reconfigurator 1541 | -10/Exiles | Build established: Commander-Mutant 1771 | -10/Exiles | Discovered new exit (range 12) 1792 | -10/Exiles | Entered Mines 1792 | -9/Mines | Accompanied by 7 allies 1812 | -9/Mines | Met a Derelict bent on vengeance 1974 | -9/Mines | Learned location of Zion (-6) 2282 | -9/Mines | Learned Materials garrison access intel 2377 | -9/Mines | A weapon hastily lodged in a ceiling crevice suddenly fell to the ground 2382 | -9/Mines | Assembled infested the area 2437 | -9/Mines | Lost 5 allies 2466 | -9/Mines | Core integrity fell below 50% 2482 | -9/Mines | Core integrity fell below 20% 2531 | -9/Mines | Lost 7 parts (1p2n2u2w) 2597 | -9/Mines | Discovered new exit (range 12) 2623 | -9/Mines | Entered Materials 2623 | -8/Materials | Evolved 4 slots: Propulsion x2, Utility x1, Weapon x1 2624 | -8/Materials | Loaded intel: 1 garrison access location 2905 | -8/Materials | Build established: Gunner 3300 | -8/Materials | Discovered new exit (range 10) 3520 | -8/Materials | Garrison activated, responded to threat 3598 | -8/Materials | Entered Factory 3598 | -7/Factory | Evolved 2 slots: Propulsion x1, Utility x1 3749 | -7/Factory | Discovered new exit (range 11) 4165 | -7/Factory | Build established: Scavenger-Gunner 4505 | -7/Factory | Fabricated Antimatter Reactor (x2) 4914 | -7/Factory | Build established: Gunner 5029 | -7/Factory | Discovered new exit (range 7) 5041 | -7/Factory | Identified exit to Lower Caves 5041 | -7/Factory | Entered Lower Caves 5308 | -7/Lower Caves | Learned Factory trap positions 5322 | -7/Lower Caves | Build established: Skirmisher 5365 | -7/Lower Caves | Encountered a Warlord checkpoint 5425 | -7/Lower Caves | Discovered new exit (range 15) 5453 | -7/Lower Caves | Identified exit to Lower Caves 5454 | -7/Lower Caves | Entered another Lower Caves area 5456 | -7/Lower Caves | Attracted the attention of an 0b10 checkpoint 5547 | -7/Lower Caves | Learned location of 1 exit from Factory 5654 | -7/Lower Caves | Learned location of 1 exit from Proximity Caves 6193 | -7/Lower Caves | Spotted B-75 Beast 6226 | -7/Lower Caves | Destroyed B-75 Beast 6328 | -7/Lower Caves | Discovered new exit (range 7) 6336 | -7/Lower Caves | Identified exit to Data Miner 6436 | -7/Lower Caves | Entered Data Miner 6436 | -7/Data Miner | Discovered new exit (range 6) 6466 | -7/Data Miner | Met Data Miner 6505 | -7/Data Miner | Learned location of Section 7 (-2) 6505 | -7/Data Miner | Acquired the access code to Warlord's prototype stash 6521 | -7/Data Miner | Received God Mode back door access code from Data Miner 6553 | -7/Data Miner | Identified exit to Proximity Caves 6560 | -7/Data Miner | Entered Proximity Caves 6561 | -6/Proximity Caves | Identified exit to Factory 6562 | -6/Proximity Caves | Attracted the attention of an 0b10 checkpoint 6621 | -6/Proximity Caves | Lost 4 parts (1n1u2w) 7490 | -6/Proximity Caves | Learned Factory terminal intel 7524 | -6/Proximity Caves | Entered Factory 7524 | -6/Factory | Evolved 2 slots: Utility x2 7525 | -6/Factory | Identified exit to Extension 7526 | -6/Factory | Loaded intel: 60 trap records 7527 | -6/Factory | Loaded intel: 28 terminal locations 8657 | -6/Factory | Lost 3 parts (3n) 8945 | -6/Factory | Spotted B-75 Beast 9231 | -6/Factory | Discovered new exit (range 16) 9270 | -6/Factory | Identified exit to Lower Caves 9946 | -6/Factory | Build established: Scavenger-Skirmisher 9953 | -6/Factory | Entered Extension 10308 | -6/Extension | Energy Cycler disabled 10308 | -6/Extension | Rescued a captive Derelict 10308 | -6/Extension | Rescued a captive Derelict 10308 | -6/Extension | Rescued a captive Derelict 10308 | -6/Extension | Rescued a captive Derelict 10309 | -6/Extension | Rescued a captive Derelict 10311 | -6/Extension | Rescued a captive Derelict 10320 | -6/Extension | Rescued a captive Derelict 10321 | -6/Extension | Rescued a captive Derelict 10327 | -6/Extension | Rescued a captive Derelict 10408 | -6/Extension | Lost 3 parts (1p1n1w) 10441 | -6/Extension | Build established: Scavenger-Gunner 10947 | -6/Extension | Spotted B-75 Beast 10959 | -6/Extension | Allies destroyed B-75 Beast 10989 | -6/Extension | Discovered new exit (range 14) 11018 | -6/Extension | Extracted ID and sensor layout for unrecognized location from A7's data core 11038 | -6/Extension | Lost 4 allies 11193 | -6/Extension | Lost 3 allies 11353 | -6/Extension | First assault squad dispatched 11453 | -6/Extension | Disrupted transfer network 11459 | -6/Extension | Lost 3 parts (2n1w) 11532 | -6/Extension | Discovered new exit (range 10) 11533 | -6/Extension | Discovered new exit (range 6) 11543 | -6/Extension | Identified exit to Cetus 11544 | -6/Extension | Entered Cetus 11544 | -6/Cetus | Accompanied by 3 allies 11566 | -6/Cetus | Spotted Cetus Guard 11566 | -6/Cetus | Spotted Cetus Guard 11568 | -6/Cetus | Spotted Cetus Guard 11568 | -6/Cetus | Spotted Cetus Guard 11577 | -6/Cetus | Allies destroyed Cetus Guard 11577 | -6/Cetus | Destroyed Cetus Guard 11593 | -6/Cetus | Allies destroyed Cetus Guard 11599 | -6/Cetus | Destroyed Cetus Guard 11727 | -6/Cetus | Discovered new exit (range 15) 11753 | -6/Cetus | Identified exit to Archives 11754 | -6/Cetus | Entered Archives 11754 | -6/Archives | Accompanied by 1 ally 11830 | -6/Archives | Core integrity fell below 50% 11874 | -6/Archives | Discovered new exit (range 16) 11916 | -6/Archives | Discovered new exit (range 16) 11961 | -6/Archives | Unable to access archive contents 11988 | -6/Archives | Identified exit to Hub_04(d) 12313 | -6/Archives | Entered Hub_04(d) 12521 | -6/Hub_04(d) | Garrison activated, responded to threat 12576 | -6/Hub_04(d) | Discovered new exit (range 16) 12619 | -6/Hub_04(d) | Build established: Scavenger-Skirmisher 12844 | -6/Hub_04(d) | Network Hub disabled 12853 | -6/Hub_04(d) | Spotted Lightning 12855 | -6/Hub_04(d) | Spotted Lightning 12857 | -6/Hub_04(d) | Spotted Lightning 12866 | -6/Hub_04(d) | Identified exit to Factory 12877 | -6/Hub_04(d) | Incoming investigation squad redirected 12899 | -6/Hub_04(d) | Core integrity fell below 20% 12906 | -6/Hub_04(d) | Entered Factory 12906 | -5/Factory | Evolved 2 slots: Power x1, Propulsion x1 12932 | -5/Factory | Lost 15 parts (1p5n2u7w) 13109 | -5/Factory | Repaired Huge Storage Unit 13177 | -5/Factory | Build established: Mutant 13238 | -5/Factory | Garrison activated, responded to threat 13303 | -5/Factory | Discovered new exit (range 10) 13328 | -5/Factory | Identified exit to Factory 13542 | -5/Factory | Spotted B-75 Beast 13561 | -5/Factory | Allies destroyed B-75 Beast 13736 | -5/Factory | Identified exit to Upper Caves 14085 | -5/Factory | Found Prototype Launcher 14085 | -5/Factory | Identified Mni. Smartbomb Launcher 14280 | -5/Factory | Lost 3 allies 14590 | -5/Factory | Garrison activated, responded to threat 14638 | -5/Factory | Entered Upper Caves 14640 | -5/Upper Caves | Attracted the attention of an 0b10 checkpoint 14740 | -5/Upper Caves | Ambushed by wild Derelicts 14784 | -5/Upper Caves | Build established: Gunner 14997 | -5/Upper Caves | Attacked by a faux Warlord 15063 | -5/Upper Caves | Lost 3 parts (2p1u) 15386 | -5/Upper Caves | Discovered new exit (range 10) 15396 | -5/Upper Caves | Build established: Scavenger-Gunner 15397 | -5/Upper Caves | Identified exit to Upper Caves 15414 | -5/Upper Caves | Entered another Upper Caves area 15424 | -5/Upper Caves | Discovered exit to Factory (range 7) 15539 | -5/Upper Caves | Learned location of Armory (-4) 15833 | -5/Upper Caves | Encountered a Warlord checkpoint 15911 | -5/Upper Caves | Lost 3 allies 16022 | -5/Upper Caves | Discovered new exit (range 6) 16030 | -5/Upper Caves | Identified exit to Zhirov 16032 | -5/Upper Caves | Entered Zhirov 16034 | -5/Zhirov | Discovered new exit (range 3) 16064 | -5/Zhirov | Met Zhirov 16095 | -5/Zhirov | Learned location of Quarantine (-2) 16095 | -5/Zhirov | Learned location of Testing (-3) 16095 | -5/Zhirov | Learned location of Command (-1) 16134 | -5/Zhirov | Zhirov requested help retrieving the SGEMP Prototype 16170 | -5/Zhirov | Found Alien Artifact 16170 | -5/Zhirov | Identified Integrated Dissipator 16170 | -5/Zhirov | Installed Integrated Dissipator, increased core heat dissipation (+20) 16346 | -5/Zhirov | Build established: Scavenger-Mutant 16350 | -5/Zhirov | Found Alien Artifact 16431 | -5/Zhirov | Identified exit to Proximity Caves 16433 | -5/Zhirov | Entered Proximity Caves 16710 | -4/Proximity Caves | Build established: Scavenger-Gunner 16935 | -4/Proximity Caves | Learned 4 Research zone layouts 16968 | -4/Proximity Caves | Discovered exit to Factory (range 14) 17049 | -4/Proximity Caves | Learned Research emergency access door positions 17086 | -4/Proximity Caves | Entered Factory 17086 | -4/Factory | Evolved 2 slots: Utility x1, Weapon x1 17168 | -4/Factory | Build established: Scavenger-Tank 17184 | -4/Factory | Spotted B-86 Titan 17299 | -4/Factory | Destroyed B-86 Titan 17323 | -4/Factory | Lost 4 parts (2n1u1w) 17806 | -4/Factory | Identified Transdimensional Reconstructor 17806 | -4/Factory | Warped through subspace 17835 | -4/Factory | Lost 7 parts (4n2u1w) 17950 | -4/Factory | Discovered new exit (range 14) 17952 | -4/Factory | Released all parts (9) 17960 | -4/Factory | Core integrity fell below 50% 17966 | -4/Factory | Core integrity fell below 20% 17966 | -4/Factory | Entered Armory 17982 | -4/Armory | Lost 5 parts (1n1u3w) 18170 | -4/Armory | Destroyed by S-27 Virus with Autogun Last Messages --------------- 17994_ E-15 Imp springs to life. 17996_ E-15 Imp destroyed. 17997_ Acquired 14 matter. 17997_ E-15 Imp destroyed. 17999_ Acquired 11 matter. 17999_ Acquired 18 matter. 18000_ E-15 Imp destroyed. 18001_ Acquired 19 matter. 18008_ Connecting with Terminal... 18044_ Acquired Linear Gravjet. 18048_ Acquired Adv. Plasma Cannon. 18050_ Acquired Imp. Fusion Compressor. 18052_ Dropped Imp. Fusion Compressor. 18145_ C-30 ARC bursts open, deploying its payload. 18145_ S-27 Virus unfolds itself. 18156_ Dropped Adv. Plasma Cannon. 18158_ S-27 Virus destroyed. 18158_ Linear Gravjet destroyed. 18170_ Slammed into S-27 Virus. Map ----- +----------------------------------------------------+ | ?????????????????????????????????????????????????? | | ?????????????????????????????????????????????????? | | ?????????????????????????????????????????????????? | | ?????????????????????????????????????????????????? | | ??????????????????????????##?????????????????????? | | ??????????????????????????# #?????????###????????? | | ???????????????????????????# #????????# #????????? | | ????????????????????????????#"#########"#????????? | | ????????????????????????????#" ######???? | | ????????????????????????????## + #???? | | ?????????????????????????????# """"" #### #???? | | ?????????????????????????????# "???" #????????? | | ?????????????????????????????# "???" #????????? | | ?????????????????????????????# """"" #????????? | | ??????????????????????######## #????????? | | ??????????????? " "" #????????? | | ??????????????? %" ## #????????? | | ??????????????????######?# ## ########?? | | ?????????????????????????# ## # !#?? | | ?????????????????????????# ## # ] [ #?? | | ????????????????########## ## ] / ]] ""#?? | | ????????????????# # ## # *=Y"#?? | | ????????????????# !!! # ## % # !=""#?? | | ????????????????# !!! # ##########/## = #?? | | ????????????????# s#s ######## [=####+##### | | ????????????????# !!! @ s T" ===/ | | ????????????????# !!! # " /=! | | ????????????????# # ######## ####+##### | | ????????????????# # #??????###### #?? | | ????????????????# # #???????????# " " #?? | | ????????????????########## #???????????#?" " #?? | | ?????????????????????????# #?????????????" "?#?? | | ?????????????????????????+ +?????????????" "???? | | ?????????????????????????# #????????????? ???? | | ?????????????????????????# #?????????????####???? | | ?????????????????????????# #????????????????????? | | ?????????????????????????# #????????????????????? | | ?????????????????????????? ?????????????????????? | | ?????????????????????????? ?????????????????????? | | ?????????????????????????? ?????????????????????? | | ?????????????????????????????????????????????????? | | ?????????????????????????????????????????????????? | | ?????????????????????????????????????????????????? | | ?????????????????????????????????????????????????? | | ?????????????????????????????????????????????????? | | ?????????????????????????????????????????????????? | | ?????????????????????????????????????????????????? | | ?????????????????????????????????????????????????? | | ?????????????????????????????????????????????????? | | ?????????????????????????????????????????????????? | +----------------------------------------------------+ Best States ------------- Heat Dissipation 94 Energy Generation 45 Energy Capacity 600 Matter Stores 300 Matter Capacity 300 Sight Range 16 Robot Scan Range 15 Terrain Scan Density 10 Armor Coverage 450 Evasion (%) 50 Targeting Accuracy 8 Recoil Reduction 6 Salvage Targeting 3 Offensive Hacking 10 Defensive Hacking 14 Item Schematics ----------------- Combat Drone Bay | -7/Data Miner | Free Lgt. Regenerative Plating | -7/Data Miner | Free Biomechanical Wings | -7/Data Miner | Free Gravity Neutralizer | -7/Data Miner | Free Com. Ion Cannon | -7/Data Miner | Free Antigrav System | -7/Data Miner | Free Adv. Trap Extractor | -7/Data Miner | Free Imp. Arc Projector | -7/Data Miner | Free KE Penetrator | -7/Data Miner | Free Energy Well | -7/Data Miner | Free Adv. Target Analyzer | -7/Data Miner | Free Assault Drone Bay | -5/Zhirov | Free Exp. Heat Sink | -5/Zhirov | Free Exp. Optical Array | -5/Zhirov | Free Imp. Arc Thrower | -5/Zhirov | Free Robot Schematics ------------------ R-10 Processor | -7/Data Miner | Free A-15 Conveyor | -7/Data Miner | Free P-70 Sage | -7/Data Miner | Free M-22 Extractor | -7/Data Miner | Free B-48 Gladiator | -7/Data Miner | Free G-50 Soldier | -7/Data Miner | Free Fabricated ------------ Antimatter Reactor | x2 | -7/Factory | Preloaded Alien Tech Used ----------------- Integrated Dissipator Transdimensional Reconstructor Achievements -------------- None Challenges ------------ None Game ------ Seed RagnarokFortressMultirail Manual? 0 Play Time 02:16:36 Cumulative 154.1 hours Start 2025.01.18 @ 16:42:52 End 2025.01.18 @ 19:46:24 Sessions 1 Manual Loads 0 Difficulty Rogue Special Mode None Game No. 127 Rogue 127 Adventurer 0 Explorer 0 Win Type - Total 3 Types 1/0/1/1/0/0/0/0/0 Lore% 68 Gallery% 60 Achievement% 57 Wizard Run 0 Options --------- Layout 1 ASCII 0 Keyboard 1 Movement Arrows Keybinds 0 Fullscreen 2 Font 24/Smallcaps Map View 50x35 Zoom Use 0% Tactical HUD 1 Map Filters NONE Filters NONE Steam 1 RUN: c8116f09-488e-4c93-b2d5-88032b04f839